fUST/lending_fUST_20250609
["ID","MTS","AMOUNT","RATE_DAILY","PERIOD"]
[365032705,1749417035400,-587.34241287,0.00019178,2]
[365032706,1749417035410,-440.0,0.00019178,2]
[365032707,1749417035420,-440.0,0.00019178,2]
[365032708,1749417035431,-440.0,0.00019178,2]
[365032709,1749417035442,-430.0,0.00019178,2]
[365032710,1749417035453,-440.0,0.00019178,2]
[365032711,1749417035462,-450.0,0.00019178,2]
[365032712,1749417035472,-228.78,0.00019178,2]
[365032713,1749417035483,-440.0,0.00019178,2]
[365032714,1749417035492,-430.0,0.00019178,2]
[365032715,1749417035503,-400.0,0.00019178,2]
[365032716,1749417035514,-430.0,0.00019178,2]
[365032717,1749417035527,-440.0,0.00019178,2]
[365032718,1749417035539,-430.0,0.00019178,2]
[365032719,1749417035550,-400.0,0.00019178,2]
[365032720,1749417035560,-454.7468304,0.00019178,2]
[365032721,1749417035571,-430.0,0.00019178,2]
[365032722,1749417035580,-440.0,0.00019178,2]
[365032723,1749417035592,-430.0,0.00019178,2]
[365032724,1749417035602,-440.0,0.00019178,2]
[365032725,1749417035614,-440.0,0.00019178,2]
[365032726,1749417035624,-430.0,0.00019178,2]
[365032727,1749417035637,-430.0,0.00019178,2]
[365032728,1749417035647,-430.0,0.00019178,2]
[365032729,1749417035657,-385.23465037,0.00019178,2]
[365032730,1749417035667,-430.0,0.00019178,2]
[365032731,1749417035678,-430.0,0.00019178,2]
[365032732,1749417035689,-385.56374583,0.00019178,2]
[365032733,1749417035699,-430.0,0.00019178,2]
[365032734,1749417035709,-430.0,0.00019178,2]
[365032735,1749417035719,-430.0,0.00019178,2]
[365032736,1749417035728,-440.0,0.00019178,2]
[365032737,1749417035738,-440.0,0.00019178,2]
[365032738,1749417035748,-450.0,0.00019178,2]
[365032739,1749417035758,-481.63,0.00019178,2]
[365032740,1749417035768,-430.0,0.00019178,2]
[365032741,1749417035777,-440.0,0.00019178,2]
[365032742,1749417035788,-440.0,0.00019178,2]
[365032743,1749417035798,-430.0,0.00019178,2]
[365032744,1749417035808,-961.66,0.00019178,2]
[365032745,1749417035818,-440.0,0.00019178,2]
[365032746,1749417035828,-451.61966294,0.00019178,2]
[365032747,1749417035837,-443.05644999,0.00019178,2]
[365032748,1749417035847,-450.0,0.00019178,2]
[365032749,1749417035856,-440.0,0.00019178,2]
[365032750,1749417035866,-431.92347521,0.00019178,2]
[365032751,1749417035875,-440.0,0.00019178,2]
[365032752,1749417035884,-430.0,0.00019178,2]
[365032753,1749417035894,-285.0,0.00019178,2]
[365032754,1749417035903,-440.0,0.00019178,2]
[365032755,1749417035913,-440.0,0.00019178,2]
[365032756,1749417035922,-440.0,0.00019178,2]
[365032757,1749417035931,-440.0,0.00019178,2]
[365032758,1749417035940,-641.95,0.00019178,2]
[365032759,1749417035950,-430.0,0.00019178,2]
[365032760,1749417035959,-788.67,0.00019178,2]
[365032761,1749417035969,-440.0,0.00019178,2]
[365032762,1749417035978,-440.0,0.00019178,2]
[365032763,1749417035987,-430.0,0.00019178,2]
[365032764,1749417035996,-440.0,0.00019178,2]
[365032765,1749417036005,-1023.98,0.00019178,2]
[365032766,1749417036014,-440.0,0.00019178,2]
[365032767,1749417036024,-430.0,0.00019178,2]
[365032768,1749417036035,-441.49245202,0.00019178,2]
[365032769,1749417036045,-440.0,0.00019178,2]
[365032770,1749417036054,-440.0,0.00019178,2]
[365032771,1749417036064,-440.0,0.00019178,2]
[365032772,1749417036074,-440.0,0.00019178,2]
[365032773,1749417036084,-457.45,0.00019178,2]
[365032774,1749417036094,-440.0,0.00019178,2]
[365032775,1749417036103,-450.0,0.00019178,2]
[365032776,1749417036112,-430.0,0.00019178,2]
[365032777,1749417036122,-440.0,0.00019178,2]
[365032778,1749417036132,-430.0,0.00019178,2]
[365032779,1749417036142,-323.27982967,0.00019178,2]
[365032780,1749417036152,-1460.33,0.00019178,2]
[365032781,1749417036161,-440.0,0.00019178,2]
[365032782,1749417036172,-555.7676786,0.00019178,2]
[365032783,1749417036182,-923.19,0.00019178,2]
[365032784,1749417036192,-430.0,0.00019178,2]
[365032785,1749417036201,-440.0,0.00019178,2]
[365032786,1749417036211,-430.0,0.00019178,2]
[365032787,1749417036221,-440.0,0.00019178,2]
[365032788,1749417036231,-440.0,0.00019178,2]
[365032789,1749417036240,-430.0,0.00019178,2]
[365032790,1749417036249,-381.47508225,0.00019178,2]
[365032791,1749417036259,-912.45,0.00019178,2]
[365032792,1749417036268,-430.0,0.00019178,2]
[365032793,1749417036277,-440.0,0.00019178,2]
[365032794,1749417036286,-401.04471963,0.00019178,2]
[365032795,1749417036295,-376.86585796,0.00019178,2]
[365032796,1749417036305,-750.82,0.00019178,2]
[365032797,1749417036314,-391.8984415,0.00019178,2]
[365032798,1749417036324,-440.0,0.00019178,2]
[365032799,1749417036333,-440.0,0.00019178,2]
[365032800,1749417036342,-430.0,0.00019178,2]
[365032801,1749417036351,-440.0,0.00019178,2]
[365032802,1749417036361,-430.0,0.00019178,2]
[365032803,1749417036370,-430.0,0.00019178,2]
[365032804,1749417036379,-430.0,0.00019178,2]
[365032805,1749417036388,-507.71,0.00019178,2]
[365032806,1749417036398,-440.0,0.00019178,2]
[365032807,1749417036407,-440.0,0.00019178,2]
[365032808,1749417036416,-440.0,0.00019178,2]
[365032809,1749417036425,-440.0,0.00019178,2]
[365032810,1749417036434,-430.0,0.00019178,2]
[365032811,1749417036443,-440.0,0.00019178,2]
[365032812,1749417036452,-500.0,0.00019178,2]
[365032813,1749417036462,-430.0,0.00019178,2]
[365032814,1749417036471,-186.150235,0.00019178,2]
[365032815,1749417036480,-218.03,0.00019452,2]
[365032816,1749417036489,-420.0,0.00019452,2]
[365032817,1749417036501,-440.0,0.00019452,2]
[365032818,1749417036511,-420.0,0.00019452,2]
[365032819,1749417036526,-499.70322068,0.00019452,2]
[365032820,1749417036538,-440.0,0.00019452,2]
[365032821,1749417036551,-390.0,0.00019452,2]
[365032822,1749417036562,-440.0,0.00019452,2]
[365032823,1749417036572,-440.0,0.00019452,2]
[365032824,1749417036582,-483.97937949,0.00019452,2]
[365032825,1749417036592,-370.0,0.00019452,2]
[365032826,1749417036602,-440.0,0.00019452,2]
[365032827,1749417036613,-420.0,0.00019452,2]
[365032828,1749417036623,-420.0,0.00019452,2]
[365032829,1749417036633,-420.0,0.00019452,2]
[365032830,1749417036643,-420.0,0.00019452,2]
[365032831,1749417036652,-420.0,0.00019452,2]
[365032832,1749417036662,-430.0,0.00019452,2]
[365032833,1749417036671,-440.0,0.00019452,2]
[365032834,1749417036682,-430.0,0.00019452,2]
[365032835,1749417036691,-430.0,0.00019452,2]
[365032836,1749417036700,-440.0,0.00019452,2]
[365032837,1749417036710,-370.0,0.00019452,2]
[365032838,1749417036719,-440.0,0.00019452,2]
[365032839,1749417036730,-420.0,0.00019452,2]
[365032840,1749417036739,-430.0,0.00019452,2]
[365032841,1749417036750,-430.0,0.00019452,2]
[365032842,1749417036760,-440.0,0.00019452,2]
[365032843,1749417036769,-440.0,0.00019452,2]
[365032844,1749417036778,-420.0,0.00019452,2]
[365032845,1749417036787,-440.0,0.00019452,2]
[365032846,1749417036797,-440.0,0.00019452,2]
[365032847,1749417036806,-440.0,0.00019452,2]
[365032848,1749417036815,-420.0,0.00019452,2]
[365032849,1749417036824,-193.96334616,0.00019452,2]
[365032850,1749417036835,-440.0,0.00019452,2]
[365032851,1749417036844,-440.0,0.00019452,2]
[365032852,1749417036857,-430.0,0.00019452,2]
[365032853,1749417036868,-420.0,0.00019452,2]
[365032854,1749417036878,-536.47,0.00019452,2]
[365032855,1749417036887,-518.28,0.00019452,2]
[365032856,1749417036897,-440.0,0.00019452,2]
[365032857,1749417036906,-440.0,0.00019452,2]
[365032858,1749417036915,-440.0,0.00019452,2]
[365032859,1749417036925,-420.0,0.00019452,2]
[365032860,1749417036935,-420.0,0.00019452,2]
[365032861,1749417036946,-1140.11,0.00019452,2]
[365032862,1749417036956,-420.0,0.00019452,2]
[365032863,1749417036966,-440.0,0.00019452,2]
[365032864,1749417036977,-440.0,0.00019452,2]
[365032865,1749417036987,-1102.28,0.00019452,2]
[365032866,1749417036997,-560.0,0.00019452,2]
[365032867,1749417037006,-560.0,0.00019452,2]
[365032868,1749417037016,-478.17,0.00019452,2]
[365032869,1749417037026,-440.0,0.00019452,2]
[365032870,1749417037036,-304.39,0.00019452,2]
[365032871,1749417037046,-440.0,0.00019452,2]
[365032872,1749417037055,-493.88,0.00019452,2]
[365032873,1749417037065,-515.3,0.00019452,2]
[365032874,1749417037074,-420.0,0.00019452,2]
[365032875,1749417037084,-440.0,0.00019452,2]
[365032876,1749417037094,-430.0,0.00019452,2]
[365032877,1749417037103,-380.0,0.00019452,2]
[365032878,1749417037113,-440.0,0.00019452,2]
[365032879,1749417037122,-440.0,0.00019452,2]
[365032880,1749417037132,-370.0,0.00019452,2]
[365032881,1749417037141,-440.0,0.00019452,2]
[365032882,1749417037150,-440.0,0.00019452,2]
[365032883,1749417037161,-440.0,0.00019452,2]
[365032884,1749417037171,-961.66,0.00019452,2]
[365032885,1749417037181,-400.0,0.00019452,2]
[365032886,1749417037193,-480.0,0.00019452,2]
[365032887,1749417037203,-430.0,0.00019452,2]
[365032888,1749417037213,-440.0,0.00019452,2]
[365032889,1749417037224,-440.0,0.00019452,2]
[365032890,1749417037234,-302.03436861,0.00019452,2]
[365032891,1749417037243,-440.0,0.00019452,2]
[365032892,1749417037253,-641.95,0.00019452,2]
[365032893,1749417037263,-788.67,0.00019452,2]
[365032894,1749417037272,-420.0,0.00019452,2]
[365032895,1749417037282,-440.0,0.00019452,2]
[365032896,1749417037291,-1023.98,0.00019452,2]
[365032897,1749417037301,-225.06760226,0.00019452,2]
[365032898,1749417037312,-420.0,0.00019452,2]
[365032899,1749417037321,-440.0,0.00019452,2]
[365032900,1749417037331,-440.0,0.00019452,2]
[365032901,1749417037341,-430.0,0.00019452,2]
[365032902,1749417037351,-440.0,0.00019452,2]
[365032903,1749417037361,-440.0,0.00019452,2]
[365032904,1749417037372,-1460.33,0.00019452,2]
[365032905,1749417037382,-440.0,0.00019452,2]
[365032906,1749417037392,-923.19,0.00019452,2]
[365032907,1749417037402,-440.0,0.00019452,2]
[365032908,1749417037411,-912.45,0.00019452,2]
[365032909,1749417037421,-411.72059834,0.00019452,2]
[365032910,1749417037430,-750.82,0.00019452,2]
[365032911,1749417037440,-440.0,0.00019452,2]
[365032912,1749417037449,-310.0,0.00019452,2]
[365032913,1749417037458,-507.71,0.00019452,2]
[365032914,1749417037467,-294.57894625,0.00019452,2]
[365032915,1749417037476,-490.98072077,0.00019452,2]
[365032916,1749417037486,-1000.0,0.00019721,2]
[365032917,1749417037498,-161.1426225,0.00019721,2]
[365032918,1749417037508,-434.01501549,0.00019726,2]
[365032919,1749417037519,-400.0,0.00019726,2]
[365032920,1749417037532,-370.0,0.00019726,2]
[365032921,1749417037542,-430.0,0.00019726,2]
[365032922,1749417037551,-340.0,0.00019726,2]
[365032923,1749417037562,-440.0,0.00019726,2]
[365032924,1749417037572,-430.0,0.00019726,2]
[365032925,1749417037581,-410.0,0.00019726,2]
[365032926,1749417037592,-440.0,0.00019726,2]
[365032927,1749417037602,-440.0,0.00019726,2]
[365032928,1749417037612,-410.0,0.00019726,2]
[365032929,1749417037622,-374.11694667,0.00019726,2]
[365032930,1749417037632,-440.0,0.00019726,2]
[365032931,1749417037642,-440.0,0.00019726,2]
[365032932,1749417037763,-536.47,0.00019726,2]
[365032933,1749417037774,-440.0,0.00019726,2]
[365032934,1749417037784,-440.0,0.00019726,2]
[365032935,1749417037795,-420.0,0.00019726,2]
[365032936,1749417037804,-1140.11,0.00019726,2]
[365032937,1749417037814,-440.0,0.00019726,2]
[365032938,1749417037824,-440.0,0.00019726,2]
[365032939,1749417037834,-1102.28,0.00019726,2]
[365032940,1749417037846,-478.17,0.00019726,2]
[365032941,1749417037857,-440.0,0.00019726,2]
[365032942,1749417037869,-440.0,0.00019726,2]
[365032943,1749417037878,-493.88,0.00019726,2]
[365032944,1749417037888,-440.0,0.00019726,2]
[365032945,1749417037898,-440.0,0.00019726,2]
[365032947,1749417037908,-440.0,0.00019726,2]
[365032950,1749417037917,-440.0,0.00019726,2]
[365032952,1749417037927,-440.0,0.00019726,2]
[365032955,1749417037936,-440.0,0.00019726,2]
[365032957,1749417037946,-961.66,0.00019726,2]
[365032959,1749417037956,-440.0,0.00019726,2]
[365032962,1749417037966,-440.0,0.00019726,2]
[365032964,1749417037975,-641.95,0.00019726,2]
[365032966,1749417037985,-788.67,0.00019726,2]
[365032968,1749417037996,-430.0,0.00019726,2]
[365032970,1749417038006,-1023.98,0.00019726,2]
[365032972,1749417038017,-440.0,0.00019726,2]
[365032974,1749417038026,-440.0,0.00019726,2]
[365032976,1749417038036,-440.0,0.00019726,2]
[365032978,1749417038045,-440.0,0.00019726,2]
[365032980,1749417038055,-1460.33,0.00019726,2]
[365032982,1749417038065,-440.0,0.00019726,2]
[365032984,1749417038075,-923.19,0.00019726,2]
[365032986,1749417038084,-440.0,0.00019726,2]
[365032988,1749417038094,-912.45,0.00019726,2]
[365032990,1749417038104,-750.82,0.00019726,2]
[365032992,1749417038114,-440.0,0.00019726,2]
[365032994,1749417038124,-507.71,0.00019726,2]
[365032996,1749417038133,-636.08,0.00019759,2]
[365032998,1749417038143,-440.0,0.0002,2]
[365033000,1749417038152,-440.0,0.0002,2]
[365033002,1749417038162,-555.29836005,0.0002,2]
[365033004,1749417038172,-440.0,0.0002,2]
[365033006,1749417038182,-440.0,0.0002,2]
[365033008,1749417038192,-536.47,0.0002,2]
[365033010,1749417038201,-440.0,0.0002,2]
[365033012,1749417038211,-440.0,0.0002,2]
[365033014,1749417038221,-1140.11,0.0002,2]
[365033016,1749417038230,-440.0,0.0002,2]
[365033018,1749417038240,-440.0,0.0002,2]
[365033020,1749417038249,-1102.28,0.0002,2]
[365033022,1749417038259,-478.17,0.0002,2]
[365033024,1749417038269,-440.0,0.0002,2]
[365033026,1749417038279,-440.0,0.0002,2]
[365033028,1749417038289,-493.88,0.0002,2]
[365033030,1749417038300,-440.0,0.0002,2]
[365033032,1749417038309,-440.0,0.0002,2]
[365033034,1749417038319,-440.0,0.0002,2]
[365033036,1749417038328,-440.0,0.0002,2]
[365033038,1749417038338,-440.0,0.0002,2]
[365033040,1749417038347,-440.0,0.0002,2]
[365033042,1749417038357,-961.66,0.0002,2]
[365033043,1749417038366,-440.0,0.0002,2]
[365033044,1749417038376,-440.0,0.0002,2]
[365033045,1749417038386,-641.95,0.0002,2]
[365033047,1749417038396,-788.67,0.0002,2]
[365033049,1749417038405,-1023.98,0.0002,2]
[365033051,1749417038415,-440.0,0.0002,2]
[365033053,1749417038425,-559.57,0.0002,2]
[365033055,1749417038434,-440.0,0.0002,2]
[365033057,1749417038444,-440.0,0.0002,2]
[365033059,1749417038454,-1460.33,0.0002,2]
[365033060,1749417038464,-440.0,0.0002,2]
[365033062,1749417038474,-923.19,0.0002,2]
[365033063,1749417038483,-440.0,0.0002,2]
[365033064,1749417038493,-912.45,0.0002,2]
[365033065,1749417038503,-750.82,0.0002,2]
[365033066,1749417038513,-359.47904283,0.0002,2]
[365033067,1749417038526,-507.71,0.0002,2]
[365033068,1749417038535,-170.931,0.00020136,2]
[365033069,1749417038546,-425.95702,0.00020187,2]
[365033070,1749417038555,-229.60437222,0.00020254,2]
[365033071,1749417038565,-160.0,0.00020254,2]
[365033072,1749417038575,-834.02786405,0.00020254,2]
[365033073,1749417038585,-213.05153702,0.00020255,2]
[365033074,1749417038596,-160.0,0.00020255,2]
[365033075,1749417038606,-423.98131849,0.00020255,2]
[365033076,1749417038616,-160.0,0.00020255,2]
[365033077,1749417038626,-440.0,0.00020273,2]
[365033078,1749417038636,-390.0,0.00020273,2]
[365033079,1749417038647,-440.0,0.00020273,2]
[365033080,1749417038660,-440.0,0.00020273,2]
[365033081,1749417038671,-536.47,0.00020273,2]
[365033082,1749417038681,-522.75211015,0.00020273,2]
[365033083,1749417038692,-440.0,0.00020273,2]
[365033084,1749417038702,-1140.11,0.00020273,2]
[365033085,1749417038712,-440.0,0.00020273,2]
[365033086,1749417038722,-440.0,0.00020273,2]
[365033087,1749417038731,-1102.28,0.00020273,2]
[365033088,1749417038741,-478.17,0.00020273,2]
[365033089,1749417038751,-163.32,0.00020273,2]
[365033090,1749417038761,-440.0,0.00020273,2]
[365033091,1749417038771,-493.88,0.00020273,2]
[365033092,1749417038781,-440.0,0.00020273,2]
[365033093,1749417038790,-440.0,0.00020273,2]
[365033094,1749417038800,-440.0,0.00020273,2]
[365033095,1749417038809,-440.0,0.00020273,2]
[365033096,1749417038819,-440.0,0.00020273,2]
[365033097,1749417038829,-440.0,0.00020273,2]
[365033098,1749417038838,-961.66,0.00020273,2]
[365033099,1749417038847,-440.0,0.00020273,2]
[365033100,1749417038857,-440.0,0.00020273,2]
[365033101,1749417038867,-641.95,0.00020273,2]
[365033102,1749417038877,-788.67,0.00020273,2]
[365033103,1749417038887,-1023.98,0.00020273,2]
[365033104,1749417038897,-440.0,0.00020273,2]
[365033105,1749417038907,-440.0,0.00020273,2]
[365033106,1749417038917,-440.0,0.00020273,2]
[365033107,1749417038927,-1460.33,0.00020273,2]
[365033108,1749417038936,-440.0,0.00020273,2]
[365033109,1749417038946,-923.19,0.00020273,2]
[365033110,1749417038956,-440.0,0.00020273,2]
[365033111,1749417038966,-912.45,0.00020273,2]
[365033112,1749417038976,-750.82,0.00020273,2]
[365033113,1749417038986,-507.71,0.00020273,2]
[365033114,1749417038995,-525.65,0.00020547,2]
[365033115,1749417039006,-440.0,0.00020547,2]
[365033116,1749417039015,-440.0,0.00020547,2]
[365033117,1749417039025,-536.47,0.00020547,2]
[365033118,1749417039035,-440.0,0.00020547,2]
[365033119,1749417039045,-1140.11,0.00020547,2]
[365033120,1749417039055,-440.0,0.00020547,2]
[365033121,1749417039065,-440.0,0.00020547,2]
[365033122,1749417039074,-621.81439379,0.00020547,2]
[365033132,1749417043474,-440.0,0.00019178,2]
[365033133,1749417043484,-440.0,0.00019452,2]
[365033134,1749417043494,-440.0,0.00019726,2]
[365033135,1749417043503,-440.0,0.0002,2]
[365033136,1749417043513,-440.0,0.00020273,2]
[365033137,1749417043524,-480.46560621,0.00020547,2]
[365033138,1749417043535,-478.17,0.00020547,2]
[365033139,1749417043544,-160.0,0.00020547,2]
[365033140,1749417043553,-440.0,0.00020547,2]
[365033141,1749417043564,-493.88,0.00020547,2]
[365033143,1749417043573,-440.0,0.00020547,2]
[365033145,1749417043582,-440.0,0.00020547,2]
[365033147,1749417043592,-440.0,0.00020547,2]
[365033148,1749417043602,-440.0,0.00020547,2]
[365033149,1749417043612,-440.0,0.00020547,2]
[365033150,1749417043621,-961.66,0.00020547,2]
[365033151,1749417043630,-440.0,0.00020547,2]
[365033153,1749417043640,-440.0,0.00020547,2]
[365033155,1749417043649,-641.95,0.00020547,2]
[365033157,1749417043659,-788.67,0.00020547,2]
[365033158,1749417043669,-1023.98,0.00020547,2]
[365033159,1749417043678,-440.0,0.00020547,2]
[365033160,1749417043688,-440.0,0.00020547,2]
[365033161,1749417043698,-1460.33,0.00020547,2]
[365033162,1749417043708,-440.0,0.00020547,2]
[365033163,1749417043718,-923.19,0.00020547,2]
[365033164,1749417043727,-440.0,0.00020547,2]
[365033165,1749417043737,-912.45,0.00020547,2]
[365033166,1749417043747,-750.82,0.00020547,2]
[365033167,1749417043758,-507.71,0.00020547,2]
[365033168,1749417043768,-440.0,0.00020547,2]
[365033169,1749417043778,-587.19,0.000206,2]
[365033170,1749417043787,-1784.28,0.000206,2]
[365033171,1749417043798,-198.0,0.0002064,2]
[365033172,1749417043807,-151.0,0.0002064,2]
[365033173,1749417043817,-198.0,0.0002064,2]
[365033174,1749417043829,-151.0,0.0002064,2]
[365033175,1749417043845,-151.0,0.0002064,2]
[365033176,1749417043855,-151.0,0.0002064,2]
[365033177,1749417043864,-151.0,0.0002064,2]
[365033178,1749417043875,-151.0,0.00020667,2]
[365033179,1749417043885,-1100.0,0.00020765,2]
[365033180,1749417043895,-536.47,0.00020821,2]
[365033181,1749417043905,-440.0,0.00020821,2]
[365033182,1749417043914,-1140.11,0.00020821,2]
[365033183,1749417043924,-440.0,0.00020821,2]
[365033184,1749417043933,-440.0,0.00020821,2]
[365033185,1749417043943,-1102.28,0.00020821,2]
[365033186,1749417043952,-478.17,0.00020821,2]
[365033187,1749417043962,-440.0,0.00020821,2]
[365033188,1749417043972,-493.88,0.00020821,2]
[365033189,1749417043981,-440.0,0.00020821,2]
[365033190,1749417043990,-440.0,0.00020821,2]
[365033191,1749417044000,-440.0,0.00020821,2]
[365033192,1749417044009,-440.0,0.00020821,2]
[365033193,1749417044018,-440.0,0.00020821,2]
[365033194,1749417044027,-961.66,0.00020821,2]
[365033195,1749417044036,-440.0,0.00020821,2]
[365033196,1749417044045,-440.0,0.00020821,2]
[365033197,1749417044056,-641.95,0.00020821,2]
[365033198,1749417044065,-788.67,0.00020821,2]
[365033199,1749417044074,-1023.98,0.00020821,2]
[365033200,1749417044084,-440.0,0.00020821,2]
[365033201,1749417044094,-1460.33,0.00020821,2]
[365033202,1749417044103,-923.19,0.00020821,2]
[365033203,1749417044113,-440.0,0.00020821,2]
[365033204,1749417044122,-912.45,0.00020821,2]
[365033205,1749417044131,-750.82,0.00020821,2]
[365033206,1749417044141,-507.71,0.00020821,2]
[365033207,1749417044150,-440.0,0.00020821,2]
[365033208,1749417044160,-420.0,0.00020898,2]
[365033209,1749417044169,-420.0,0.00020898,2]
[365033210,1749417044178,-3205.31036216,0.000209,4]
[365033211,1749417044188,-151.0,0.00021,2]
[365033212,1749417044197,-5000.0,0.00021,2]
[365033213,1749417044207,-3205.31036196,0.00021038,4]
[365033214,1749417044216,-536.47,0.00021095,2]
[365033215,1749417044226,-1140.11,0.00021095,2]
[365033216,1749417044236,-440.0,0.00021095,2]
[365033217,1749417044246,-440.0,0.00021095,2]
[365033218,1749417044256,-1102.28,0.00021095,2]
[365033219,1749417044265,-478.17,0.00021095,2]
[365033220,1749417044384,-171.77,0.00021095,2]
[365033221,1749417044395,-493.88,0.00021095,2]
[365033222,1749417044405,-440.0,0.00021095,2]
[365033223,1749417044415,-440.0,0.00021095,2]
[365033224,1749417044424,-440.0,0.00021095,2]
[365033225,1749417044434,-961.66,0.00021095,2]
[365033226,1749417044444,-440.0,0.00021095,2]
[365033227,1749417044454,-641.95,0.00021095,2]
[365033228,1749417044464,-788.67,0.00021095,2]
[365033229,1749417044474,-1023.98,0.00021095,2]
[365033230,1749417044484,-440.0,0.00021095,2]
[365033231,1749417044494,-1460.33,0.00021095,2]
[365033232,1749417044504,-923.19,0.00021095,2]
[365033233,1749417044515,-440.0,0.00021095,2]
[365033234,1749417044528,-912.45,0.00021095,2]
[365033235,1749417044538,-750.82,0.00021095,2]
[365033236,1749417044548,-507.71,0.00021095,2]
[365033237,1749417044558,-440.0,0.00021095,2]
[365033238,1749417044567,-3205.31036196,0.00021176,4]
[365033239,1749417044579,-3205.31036196,0.00021314,5]
[365033240,1749417044590,-207.4,0.00021349,2]
[365033241,1749417044601,-5000.0,0.00021349,2]
[365033242,1749417044612,-536.47,0.00021369,2]
[365033243,1749417044623,-1140.11,0.00021369,2]
[365033244,1749417044632,-440.0,0.00021369,2]
[365033245,1749417044643,-440.0,0.00021369,2]
[365033246,1749417044653,-1102.28,0.00021369,2]
[365033247,1749417044663,-478.17,0.00021369,2]
[365033248,1749417044674,-493.88,0.00021369,2]
[365033249,1749417044684,-440.0,0.00021369,2]
[365033250,1749417044693,-279.69490726,0.00021369,2]
[365033251,1749417044702,-440.0,0.00021369,2]
[365033252,1749417044712,-961.66,0.00021369,2]
[365033253,1749417044722,-440.0,0.00021369,2]
[365033254,1749417044733,-641.95,0.00021369,2]
[365033255,1749417044743,-788.67,0.00021369,2]
[365033256,1749417044752,-1023.98,0.00021369,2]
[365033257,1749417044762,-440.0,0.00021369,2]
[365033258,1749417044772,-438.17676152,0.00021369,2]
[365033259,1749417044791,-1022.15323848,0.00021369,2]
[365033260,1749417044801,-923.19,0.00021369,2]
[365033261,1749417044811,-440.0,0.00021369,2]
[365033262,1749417044821,-912.45,0.00021369,2]
[365033263,1749417044831,-750.82,0.00021369,2]
[365033264,1749417044840,-507.71,0.00021369,2]
[365033265,1749417044850,-440.0,0.00021369,2]
[365033266,1749417044860,-954.12,0.00021406,2]
[365033267,1749417044869,-3205.31036196,0.00021452,5]
[365033268,1749417044880,-176.7524085,0.00021562,2]
[365033269,1749417044890,-3205.31036196,0.0002159,5]
[365033270,1749417044900,-536.47,0.00021643,2]
[365033271,1749417044909,-1140.11,0.00021643,2]
[365033272,1749417044918,-440.0,0.00021643,2]
[365033273,1749417044928,-440.0,0.00021643,2]
[365033274,1749417044937,-1102.28,0.00021643,2]
[365033275,1749417044946,-478.17,0.00021643,2]
[365033276,1749417044955,-493.88,0.00021643,2]
[365033277,1749417044965,-440.0,0.00021643,2]